bitfinex-derivatives/quotes_SOLF0:USTF0_20260104
["timestamp","ask_amount","ask_price","bid_price","bid_amount"]
[1767565794918,5.77678195,134.18,134.15,0.32317326]
[1767565795119,6.7093,134.21,134.15,0.32317326]
[1767565795319,5.77673752,134.2,134.15,0.32317326]
[1767565795519,5.77673752,134.19,134.15,0.32317326]
[1767565795715,5.77673752,134.18,134.15,0.32317326]
[1767565795922,6.7093,134.21,134.15,0.32317326]
[1767565796124,5.77673752,134.2,134.15,0.32317326]
[1767565796323,5.77673752,134.19,134.15,0.32317326]
[1767565796523,5.77673752,134.18,134.15,0.32317326]
[1767565796724,6.7093,134.21,134.15,0.32317326]
[1767565796926,12.48610425,134.2,134.13,0.32317326]
[1767565797123,5.77670425,134.19,134.13,0.32317326]
[1767565797324,5.77670425,134.18,134.13,0.32317326]
[1767565797525,6.7094,134.2,134.13,0.32317326]
[1767565797719,5.77687862,134.19,134.13,0.32317326]
[1767565797925,5.77687862,134.18,134.13,0.32317326]
[1767565798223,6.7094,134.2,134.13,0.32317326]
[1767565798425,5.77691292,134.19,134.13,0.32317326]
[1767565798628,5.77691292,134.18,134.11,0.32317326]
[1767565798827,5.77691292,134.17,134.11,0.32317326]
[1767565799026,2.66810665,134.2,134.11,0.32317326]
[1767565799228,5.77748118,134.19,134.11,0.32317326]
[1767565799427,5.77748118,134.18,134.11,0.32317326]
[1767565799626,5.77748118,134.17,134.11,7.03657326]
[1767565799829,6.7106,134.18,134.11,7.03657326]
[1767565800128,5.77670052,134.17,134.11,7.03657326]
[1767565800325,6.7106,134.18,134.11,7.03657326]
[1767565800531,5.77667934,134.17,134.11,7.03657326]
[1767565800723,6.7106,134.18,134.11,7.03657326]
[1767565800928,5.7766782,134.17,134.11,7.03657326]
[1767565801130,6.7106,134.18,134.11,7.03657326]
[1767565801431,5.77665684,134.17,134.11,7.03657326]
[1767565801634,6.7106,134.18,134.12,0.33123467]
[1767565801844,5.77607666,134.17,134.12,0.33123467]
[1767565802129,6.7106,134.18,134.12,0.33123467]
[1767565802432,5.7755638,134.17,134.12,0.33123467]
[1767565802623,6.7106,134.18,134.12,0.33123467]
[1767565802822,5.77556494,134.17,134.12,0.33123467]
[1767565803025,6.7106,134.18,134.12,0.33123467]
[1767565803229,5.77551794,134.17,134.12,0.33123467]
[1767565803427,6.7106,134.18,134.12,0.33123467]
[1767565803728,5.77510984,134.17,134.12,0.33123467]
[1767565803922,6.7106,134.18,134.12,0.33123467]
[1767565804128,5.77510984,134.17,134.12,0.33123467]
[1767565804332,6.7106,134.18,134.12,0.33123467]
[1767565804542,5.7747024,134.17,134.12,0.33123467]
[1767565804731,6.7106,134.18,134.12,0.33123467]
[1767565804935,5.7747024,134.17,134.12,0.33123467]
[1767565805133,6.7106,134.18,134.12,0.33123467]
[1767565805339,5.77433082,134.17,134.12,0.33123467]
[1767565805538,6.7106,134.18,134.12,0.33123467]
[1767565805739,5.77433082,134.17,134.12,0.33123467]
[1767565805934,6.7106,134.18,134.12,0.33123467]
[1767565806130,5.77433082,134.17,134.12,0.33123467]
[1767565806326,6.7106,134.18,134.12,0.33123467]
[1767565806527,5.77398984,134.17,134.12,0.33123467]
[1767565806738,6.7106,134.18,134.12,0.33123467]
[1767565806937,5.77398984,134.17,134.12,0.33123467]
[1767565807238,6.7106,134.18,134.12,0.33123467]
[1767565807439,5.77367902,134.17,134.12,0.33123467]
[1767565807739,6.7106,134.18,134.12,0.33123467]
[1767565807936,5.77367902,134.17,134.12,0.33123467]
[1767565808135,6.7106,134.18,134.12,0.33123467]
[1767565808339,5.77339449,134.17,134.12,0.33123467]
[1767565808540,6.7106,134.18,134.12,0.33123467]
[1767565808836,5.77339449,134.17,134.12,0.33123467]
[1767565809136,6.7106,134.18,134.12,0.33123467]
[1767565809329,5.77330866,134.17,134.12,0.33123467]
[1767565809526,9.37790665,134.2,134.12,0.33123467]
[1767565809735,5.77313127,134.19,134.12,0.33123467]
[1767565809938,5.77313127,134.18,134.12,0.33123467]
[1767565810140,5.77313127,134.17,134.12,0.33123467]
[1767565810434,9.37790665,134.2,134.12,7.04453467]
[1767565810737,5.77290417,134.19,134.12,7.04453467]
[1767565810939,5.77290417,134.18,134.12,7.04453467]
[1767565811139,5.77290417,134.17,134.1,6.714]
[1767565811333,5.77290417,134.16,134.1,7.04523467]
[1767565811533,5.77290417,134.15,134.1,7.04523467]
[1767565811734,2.66810665,134.2,134.1,7.04523467]
[1767565811936,5.77211056,134.19,134.1,7.04523467]
[1767565812135,5.77211056,134.18,134.1,7.04523467]
[1767565812337,5.77211056,134.17,134.1,7.04523467]
[1767565812537,5.77211056,134.16,134.1,7.04523467]
[1767565812738,5.77211056,134.15,134.1,7.04523467]
[1767565812942,6.7104,134.18,134.1,7.04523467]
[1767565813138,5.77069167,134.17,134.1,7.04523467]
[1767565813338,5.77069167,134.16,134.1,7.04523467]
[1767565813539,5.77069167,134.15,134.1,7.04523467]
[1767565813739,6.7104,134.18,134.1,7.04523467]
[1767565813939,5.76949386,134.17,134.1,7.04523467]
[1767565814139,5.76949386,134.16,134.12,0.33123467]
[1767565814336,94.7897,134.2,134.12,0.33123467]
[1767565814538,5.76811615,134.19,134.12,0.33123467]
[1767565814733,94.7897,134.2,134.12,7.04453467]
[1767565814734,5.76811615,134.18,134.12,7.04453467]
[1767565815035,5.76811615,134.17,134.12,7.04453467]
[1767565815235,5.76811615,134.16,134.12,7.04453467]
[1767565815433,94.7897,134.2,134.12,7.04453467]
[1767565815635,5.76775346,134.19,134.12,7.04453467]
[1767565815834,5.76775346,134.18,134.12,7.04453467]
[1767565816142,5.76775346,134.17,134.12,7.04453467]
[1767565816447,5.76775346,134.16,134.12,7.04453467]
[1767565816648,94.7897,134.2,134.12,7.04453467]
[1767565816835,5.76742246,134.19,134.12,7.04453467]
[1767565817036,5.76742246,134.18,134.12,7.04453467]
[1767565817239,5.76742246,134.17,134.12,7.04453467]
[1767565817448,94.7897,134.2,134.12,7.04453467]
[1767565817645,5.76712091,134.19,134.12,7.04453467]
[1767565817846,5.76712091,134.18,134.12,7.04453467]
[1767565818049,5.76712091,134.17,134.12,7.04453467]
[1767565818346,94.7897,134.2,134.12,7.04453467]
[1767565818546,5.76684692,134.19,134.12,7.04453467]
[1767565818752,5.76684692,134.18,134.12,7.04453467]
[1767565818950,5.76684692,134.17,134.12,7.04453467]
[1767565819152,94.7897,134.2,134.13,7.04403467]
[1767565819349,5.76660325,134.19,134.13,7.04403467]
[1767565819555,5.76660325,134.18,134.13,7.04403467]
[1767565819747,5.76660325,134.17,134.13,7.04403467]
[1767565819947,94.7897,134.2,134.13,7.04403467]
[1767565820247,5.7677397,134.19,134.13,7.04403467]
[1767565820448,5.7677397,134.18,134.13,7.04403467]
[1767565820754,5.7677397,134.17,134.13,7.04403467]
[1767565820949,94.7897,134.2,134.13,7.04403467]
[1767565821149,5.76752898,134.19,134.13,7.04403467]
[1767565821350,5.76752898,134.18,134.13,7.04403467]
[1767565821549,5.76752898,134.17,134.13,7.04403467]
[1767565821751,94.7897,134.2,134.13,7.04403467]
[1767565821946,5.76743733,134.19,134.13,7.04403467]
[1767565822147,5.76743733,134.18,134.13,7.04403467]
[1767565822348,5.76743733,134.17,134.13,7.04403467]
[1767565822550,94.7897,134.2,134.13,7.04403467]
[1767565822750,5.76737631,134.19,134.13,7.04403467]
[1767565822952,5.76737631,134.18,134.13,7.04403467]
[1767565823254,5.76737631,134.17,134.13,7.04403467]
[1767565823550,94.7897,134.2,134.13,7.04403467]
[1767565823749,5.76734651,134.19,134.13,7.04403467]
[1767565823948,5.76734651,134.18,134.13,7.04403467]
[1767565824148,5.76734651,134.17,134.13,7.04403467]
[1767565824353,94.7897,134.2,134.13,7.04403467]
[1767565824557,5.76720354,134.19,134.13,7.04403467]
[1767565824754,5.76720354,134.18,134.13,7.04403467]
[1767565824954,5.76720354,134.17,134.13,7.04403467]
[1767565825159,94.7897,134.2,134.13,7.04403467]
[1767565825360,5.76729484,134.19,134.13,7.04403467]
[1767565825659,5.76729484,134.18,134.13,7.04403467]
[1767565825862,5.76729484,134.17,134.13,7.04403467]
[1767565826061,94.7897,134.2,134.13,7.04403467]
[1767565826264,5.76741431,134.19,134.13,7.04403467]
[1767565826462,5.76741431,134.18,134.13,7.04403467]
[1767565826664,5.76741431,134.17,134.13,7.04403467]
[1767565826864,94.7897,134.2,134.13,7.04403467]
[1767565827064,5.76741431,134.19,134.13,7.04403467]
[1767565827265,5.76741431,134.18,134.13,7.04403467]
[1767565827466,5.76741431,134.17,134.13,7.04403467]
[1767565827657,94.7897,134.2,134.13,7.04403467]
[1767565827858,5.76746591,134.19,134.13,7.04403467]
[1767565828058,5.76746591,134.18,134.13,7.04403467]
[1767565828363,5.76746591,134.17,134.13,7.04403467]
[1767565828566,94.7897,134.2,134.13,7.04403467]
[1767565828867,5.7676966,134.19,134.13,7.04403467]
[1767565829066,5.7676966,134.18,134.13,7.04403467]
[1767565829268,5.7676966,134.17,134.13,7.04403467]
[1767565829567,94.7897,134.2,134.13,7.04403467]
[1767565829763,5.76794339,134.19,134.13,7.04403467]
[1767565829968,5.76794339,134.18,134.13,7.04403467]
[1767565830266,5.76794339,134.17,134.13,7.04403467]
[1767565830565,94.7897,134.2,134.13,7.04403467]
[1767565830752,5.76820715,134.19,134.13,7.04403467]
[1767565830957,5.76820715,134.18,134.13,7.04403467]
[1767565831163,5.76820715,134.17,134.13,7.04403467]
[1767565831458,94.7897,134.2,134.13,7.04403467]
[1767565831660,5.76849199,134.19,134.13,7.04403467]
[1767565831865,5.76849199,134.18,134.13,7.04403467]
[1767565832063,5.76849199,134.17,134.13,7.04403467]
[1767565832265,94.7897,134.2,134.13,7.04403467]
[1767565832466,5.76879625,134.19,134.13,7.04403467]
[1767565832654,5.76879625,134.18,134.13,7.04403467]
[1767565832858,5.76879625,134.17,134.13,7.04403467]
[1767565833064,94.7897,134.2,134.13,7.04403467]
[1767565833371,5.76912132,134.19,134.13,7.04403467]
[1767565833571,5.76912132,134.18,134.13,7.04403467]
[1767565833773,5.76912132,134.17,134.13,7.04403467]
[1767565834071,94.7897,134.2,134.13,7.04403467]
[1767565834273,5.76946884,134.19,134.13,7.04403467]
[1767565834465,5.76946884,134.18,134.13,7.04403467]
[1767565834666,5.76946884,134.17,134.13,7.04403467]
[1767565834868,94.7897,134.2,134.13,7.04403467]
[1767565835070,5.76946884,134.19,134.13,7.04403467]
[1767565835273,5.76946884,134.18,134.13,7.04403467]
[1767565835466,5.76946884,134.17,134.13,7.04403467]
[1767565835668,94.7897,134.2,134.13,7.04403467]
[1767565835968,5.76988422,134.19,134.13,7.04403467]
[1767565836170,5.76988422,134.18,134.13,7.04403467]
[1767565836367,5.76988422,134.17,134.13,7.04403467]
[1767565836568,94.7897,134.2,134.13,7.04403467]
[1767565836769,5.77032926,134.19,134.13,7.04403467]
[1767565836969,5.77032926,134.18,134.13,7.04403467]
[1767565837176,5.77032926,134.17,134.13,7.04403467]
[1767565837377,94.7897,134.2,134.13,7.04403467]
[1767565837561,5.77080964,134.19,134.13,7.04403467]
[1767565837765,5.77080964,134.18,134.13,7.04403467]
[1767565838073,5.77080964,134.17,134.13,7.04403467]
[1767565838276,94.7897,134.2,134.13,7.04403467]
[1767565838574,5.77144315,134.19,134.13,7.04403467]
[1767565838778,5.77144315,134.18,134.13,7.04403467]
[1767565838974,5.77144315,134.17,134.13,7.04403467]
[1767565839176,94.7897,134.2,134.13,7.04403467]
[1767565839377,5.77202684,134.19,134.13,7.04403467]
[1767565839578,5.77202684,134.18,134.13,7.04403467]
[1767565839775,5.77202684,134.17,134.13,7.04403467]
[1767565839982,94.7897,134.2,134.13,7.04403467]
[1767565840177,5.77202684,134.19,134.13,7.04403467]
[1767565840376,5.77202684,134.18,134.13,7.04403467]
[1767565840577,5.77202684,134.17,134.13,7.04403467]
[1767565840778,94.7897,134.2,134.13,7.04403467]
[1767565840978,5.77267618,134.19,134.13,7.04403467]
[1767565841179,5.77267618,134.18,134.13,7.04403467]
[1767565841382,5.77267618,134.17,134.13,7.04403467]
[1767565841574,94.7897,134.2,134.13,7.04403467]
[1767565841776,5.7734015,134.19,134.13,7.04403467]
[1767565842075,5.7734015,134.18,134.13,7.04403467]
[1767565842280,5.7734015,134.17,134.13,7.04403467]
[1767565842472,94.7897,134.2,134.13,7.04403467]
[1767565842673,5.77395108,134.19,134.13,7.04403467]
[1767565842873,5.77395108,134.18,134.13,7.04403467]
[1767565843073,5.77395108,134.17,134.13,7.04403467]
[1767565843272,94.7897,134.2,134.13,7.04403467]
[1767565843571,5.77461875,134.19,134.13,7.04403467]
[1767565843770,5.77461875,134.18,134.13,7.04403467]
[1767565843972,5.77461875,134.17,134.13,7.04403467]
[1767565844183,94.7897,134.2,134.13,7.04403467]
[1767565844373,5.7746171,134.19,134.13,7.04403467]
[1767565844573,5.7746171,134.18,134.13,7.04403467]
[1767565844871,5.7746171,134.17,134.13,7.04403467]
[1767565845067,94.7897,134.2,134.13,7.04403467]
[1767565845273,5.7746171,134.19,134.13,7.04403467]
[1767565845474,5.7746171,134.18,134.13,7.04403467]
[1767565845670,5.7746171,134.17,134.13,7.04403467]
[1767565845874,94.7897,134.2,134.13,7.04403467]
[1767565846077,5.77467392,134.19,134.13,7.04403467]
[1767565846279,5.77467392,134.18,134.13,7.04403467]
[1767565846480,5.77467392,134.17,134.13,7.04403467]
[1767565846680,94.7897,134.2,134.13,7.04403467]
[1767565846876,5.77468583,134.19,134.13,7.04403467]
[1767565847081,5.77468583,134.18,134.13,7.04403467]
[1767565847380,5.77468583,134.17,134.13,7.04403467]
[1767565847683,94.7897,134.2,134.13,7.04403467]
[1767565847875,5.77469743,134.19,134.13,7.04403467]
[1767565848075,5.77469743,134.18,134.13,7.04403467]
[1767565848271,5.77469743,134.17,134.13,7.04403467]
[1767565848476,94.7897,134.2,134.13,7.04403467]
[1767565848677,5.77470215,134.19,134.13,7.04403467]
[1767565848877,5.77470215,134.18,134.13,7.04403467]
[1767565849178,5.77470215,134.17,134.13,7.04403467]
[1767565849372,94.7897,134.2,134.13,7.04403467]
[1767565849579,5.77471218,134.19,134.13,7.04403467]
[1767565849779,5.77471218,134.18,134.13,7.04403467]
[1767565849979,5.77471218,134.17,134.13,7.04403467]
[1767565850279,94.7897,134.2,134.13,7.04403467]
[1767565850481,5.77344606,134.19,134.13,7.04403467]
[1767565850682,5.77344606,134.18,134.13,7.04403467]
[1767565850881,5.77344606,134.17,134.13,7.04403467]
[1767565851080,94.7897,134.2,134.13,7.04403467]
[1767565851283,5.77345349,134.19,134.13,7.04403467]
[1767565851480,5.77345349,134.18,134.13,7.04403467]
[1767565851682,5.77345349,134.17,134.13,7.04403467]
[1767565851882,94.7897,134.2,134.13,7.04403467]
[1767565852182,5.77345349,134.19,134.13,7.04403467]
[1767565852482,5.77345349,134.18,134.13,7.04403467]
[1767565852678,5.77345349,134.17,134.13,7.04403467]
[1767565852878,94.7897,134.2,134.13,7.04403467]
[1767565853075,5.77346247,134.19,134.13,7.04403467]
[1767565853275,5.77346247,134.18,134.13,7.04403467]
[1767565853482,5.77346247,134.17,134.13,7.04403467]
[1767565853683,94.7897,134.2,134.13,7.04403467]
[1767565853884,5.77347149,134.19,134.13,7.04403467]
[1767565854082,5.77347149,134.18,134.13,7.04403467]
[1767565854383,5.77347149,134.17,134.13,7.04403467]
[1767565854582,96.49799021,134.2,134.13,7.04403467]
[1767565854874,5.77348055,134.19,134.13,7.04403467]
[1767565855080,5.77348055,134.18,134.13,7.04403467]
[1767565855286,5.77348055,134.17,134.13,7.04403467]
[1767565855481,96.49799021,134.2,134.13,7.04403467]
[1767565855679,5.77345548,134.19,134.13,7.04403467]
[1767565855881,5.77345548,134.18,134.13,7.04403467]
[1767565856178,5.77345548,134.17,134.13,7.04403467]
[1767565856378,96.49799021,134.2,134.13,7.04403467]
[1767565856588,5.77378576,134.19,134.13,7.04403467]
[1767565856789,5.77378576,134.18,134.13,7.04403467]
[1767565856990,5.77378576,134.17,134.13,7.04403467]
[1767565857193,96.49799021,134.2,134.13,7.04403467]
[1767565857491,5.77440853,134.19,134.13,7.04403467]
[1767565857689,5.77440853,134.18,134.13,7.04403467]
[1767565857889,5.77440853,134.17,134.13,7.04403467]
[1767565858093,96.49799021,134.2,134.13,7.04403467]
[1767565858282,5.7751494,134.19,134.13,7.04403467]
[1767565858484,5.7751494,134.18,134.13,7.04403467]
[1767565858680,5.7751494,134.17,134.13,7.04403467]
[1767565858881,96.49799021,134.2,134.13,7.04403467]
[1767565859088,5.7751494,134.19,134.13,7.04403467]
[1767565859289,5.7751494,134.18,134.13,7.04403467]
[1767565859491,5.7751494,134.17,134.13,7.04403467]
[1767565859692,5.7751494,134.16,134.13,7.04403467]
[1767565859895,96.49799021,134.2,134.13,7.04403467]
[1767565860086,5.77604142,134.19,134.13,7.04403467]
[1767565860285,5.77604142,134.18,134.13,7.04403467]
[1767565860488,5.77604142,134.17,134.13,0.33123467]
[1767565860687,5.77604142,134.16,134.13,0.33123467]
[1767565860889,6.7099,134.19,134.13,0.33123467]
[1767565861091,5.77617341,134.18,134.13,0.33123467]
[1767565861285,5.77617341,134.18,134.09,104.4517]
[1767565861286,1.70829021,134.16,134.09,0.31317357]
[1767565861488,5.77617341,134.15,134.09,0.31317357]
[1767565861689,5.77617341,134.14,134.09,0.31317357]
[1767565861890,5.77617341,134.13,134.09,0.31317357]
[1767565862189,1.70829021,134.16,134.09,0.31317357]
[1767565862386,5.7779745,134.15,134.1,0.31317357]
[1767565862588,5.7779745,134.14,134.1,0.31317357]
[1767565862789,192.4535,134.2,134.1,0.31317357]
[1767565862990,1.70829021,134.16,134.1,0.31317357]
[1767565863186,5.77463436,134.15,134.1,0.31317357]
[1767565863393,5.77463436,134.14,134.1,0.31317357]
[1767565863594,1.70829021,134.16,134.1,0.31317357]
[1767565863791,5.77251487,134.15,134.1,0.31317357]
[1767565863991,5.77251487,134.14,134.1,0.31317357]
[1767565864193,1.70829021,134.16,134.1,0.31317357]
[1767565864385,5.77103954,134.15,134.1,0.31317357]
[1767565864588,5.77103954,134.14,134.1,0.31317357]
[1767565864790,1.70829021,134.16,134.1,0.31317357]
[1767565864989,5.77103954,134.15,134.1,0.31317357]
[1767565865289,5.77103954,134.14,134.1,0.31317357]
[1767565865490,1.70829021,134.16,134.1,0.31317357]
[1767565865692,5.76979123,134.15,134.1,0.31317357]
[1767565865991,5.76979123,134.14,134.1,0.31317357]
[1767565866190,1.70829021,134.16,134.1,0.31317357]
[1767565866399,5.76967862,134.15,134.1,0.31317357]
[1767565866697,5.76967862,134.14,134.1,0.31317357]
[1767565866893,1.70829021,134.16,134.1,0.31317357]
[1767565867094,5.76869736,134.15,134.1,0.31317357]
[1767565867302,5.76869736,134.14,134.1,0.31317357]
[1767565867500,1.70829021,134.16,134.1,0.31317357]
[1767565867696,5.76772005,134.15,134.1,0.31317357]
[1767565867896,5.76772005,134.14,134.1,0.31317357]
[1767565868196,1.70829021,134.16,134.1,0.31317357]
[1767565868394,5.76683665,134.15,134.1,0.31317357]
[1767565868595,1.70829021,134.16,134.1,0.31317357]
[1767565868798,5.76683665,134.15,134.1,0.31317357]
[1767565869000,1.70829021,134.16,134.1,0.31317357]
[1767565869298,5.76683665,134.15,134.1,7.02747357]
[1767565869498,1.70829021,134.16,134.1,7.02747357]
[1767565869690,5.76603147,134.15,134.1,7.02747357]
[1767565869890,1.70829021,134.16,134.1,7.02747357]
[1767565870088,5.76603147,134.15,134.1,7.02747357]
[1767565870297,1.70829021,134.16,134.1,7.02747357]
[1767565870499,5.76529144,134.15,134.1,7.02747357]
[1767565870699,1.70829021,134.16,134.1,7.02747357]
[1767565870899,5.76529197,134.15,134.1,7.02747357]
[1767565871091,1.70829021,134.16,134.1,7.02747357]
[1767565871292,5.76529197,134.15,134.1,7.02747357]
[1767565871493,1.70829021,134.16,134.1,7.02747357]
[1767565871694,5.76464952,134.15,134.1,7.02747357]
[1767565871895,1.70829021,134.16,134.1,7.02747357]
[1767565872096,5.76464952,134.15,134.1,7.02747357]
[1767565872298,1.70829021,134.16,134.1,7.02747357]
[1767565872500,5.76407235,134.15,134.1,7.02747357]
[1767565872699,1.70829021,134.16,134.1,7.02747357]
[1767565872900,5.76407235,134.15,134.1,7.02747357]
[1767565873199,1.70829021,134.16,134.1,7.02747357]
[1767565873403,5.76359764,134.15,134.1,7.02747357]
[1767565873599,1.70829021,134.16,134.1,7.02747357]
[1767565873800,5.76359764,134.15,134.1,7.02747357]
[1767565873994,8.41869021,134.18,134.1,7.02747357]
[1767565874199,5.76359764,134.17,134.1,7.02747357]
[1767565874400,5.76359764,134.16,134.1,7.02747357]
[1767565874600,5.76359764,134.15,134.1,7.02747357]
[1767565874808,8.41869021,134.18,134.1,7.02747357]
[1767565875010,5.76318247,134.17,134.1,7.02747357]
[1767565875309,5.76318247,134.16,134.11,0.31317357]
[1767565875506,5.76318247,134.15,134.11,0.31317357]
[1767565875707,8.41869021,134.18,134.11,0.31317357]
[1767565875908,5.76282799,134.17,134.11,0.31317357]
[1767565876111,5.76282799,134.16,134.11,0.31317357]
[1767565876408,5.76282799,134.15,134.11,0.31317357]
[1767565876609,8.41869021,134.18,134.11,0.31317357]
[1767565876912,5.76252809,134.17,134.11,0.31317357]
[1767565877111,5.76252809,134.16,134.11,0.31317357]
[1767565877409,5.76252809,134.15,134.11,0.31317357]
[1767565877610,8.41869021,134.18,134.11,0.31317357]
[1767565877804,5.7622776,134.17,134.11,0.31317357]
[1767565878004,5.7622776,134.16,134.11,0.31317357]
[1767565878206,5.7622776,134.15,134.11,0.31317357]
[1767565878402,8.41869021,134.18,134.12,0.31317357]
[1767565878603,5.76191568,134.17,134.12,0.31317357]
[1767565878801,5.76191568,134.16,134.12,0.31317357]
[1767565879013,8.41869021,134.18,134.12,0.31317357]
[1767565879212,5.76162546,134.17,134.12,0.31317357]
[1767565879507,5.76162546,134.17,134.11,6.7137]
[1767565879508,5.76162546,134.16,134.13,7.02597357]
[1767565879717,6.7097,134.2,134.14,0.31317357]
[1767565891626,5.72321292,134.19,134.14,0.31317357]
[1767565891822,94.7887,134.22,134.14,0.31317357]
[1767565892021,5.72313721,134.21,134.14,0.31317357]
[1767565892222,5.72313721,134.2,134.14,0.31317357]
[1767565892525,5.72313721,134.19,134.14,0.31317357]
[1767565892725,96.49699021,134.22,134.14,0.31317357]
[1767565892919,5.72286231,134.21,134.14,7.02547357]
[1767565893117,5.72286231,134.2,134.14,7.02547357]
[1767565893319,5.72286231,134.19,134.14,7.02547357]
[1767565893518,96.49699021,134.22,134.14,7.02547357]
[1767565893714,5.7226119,134.21,134.14,7.02547357]
[1767565893921,5.7226119,134.2,134.14,7.02547357]
[1767565894122,5.7226119,134.19,134.14,7.02547357]
[1767565894324,96.49699021,134.22,134.14,7.02547357]
[1767565894620,5.72235705,134.21,134.14,7.02547357]
[1767565894820,5.72235705,134.2,134.15,6.7119]
[1767565895020,5.72235705,134.19,134.15,6.7119]
[1767565895229,96.49699021,134.22,134.15,6.7119]
[1767565895424,5.72211123,134.21,134.15,6.7119]
[1767565895619,5.72211123,134.2,134.15,6.7119]
[1767565895922,5.72211123,134.19,134.15,6.7119]
[1767565896124,96.49699021,134.22,134.15,6.7119]
[1767565896335,5.72194588,134.21,134.15,6.7119]
[1767565896530,5.72194588,134.2,134.15,6.7119]
[1767565896735,5.72194588,134.19,134.15,6.7119]
[1767565897030,96.49699021,134.22,134.15,6.7119]
[1767565897220,5.72186907,134.21,134.15,6.7119]
[1767565897424,5.72186907,134.2,134.15,6.7119]
[1767565897625,5.72186907,134.19,134.15,6.7119]
[1767565897827,96.49699021,134.22,134.15,6.7119]
[1767565898020,5.72163396,134.21,134.15,6.7119]
[1767565898225,5.72163396,134.2,134.15,6.7119]
[1767565898423,5.72163396,134.19,134.15,6.7119]
[1767565898638,96.49699021,134.22,134.15,6.7119]
[1767565898838,5.72140458,134.21,134.15,6.7119]
[1767565899040,5.72140458,134.2,134.15,6.7119]
[1767565899332,5.72140458,134.19,134.15,6.7119]
[1767565899532,96.49699021,134.22,134.15,6.7119]
[1767565899733,5.72118077,134.21,134.15,6.7119]
[1767565899933,5.72118077,134.2,134.15,6.7119]
[1767565900132,5.72118077,134.19,134.15,6.7119]
[1767565900333,96.49699021,134.22,134.15,6.7119]
[1767565900534,5.72096236,134.21,134.15,6.7119]
[1767565900733,5.72096236,134.2,134.15,6.7119]
[1767565901034,5.72096236,134.19,134.15,6.7119]
[1767565901236,8.41699021,134.22,134.15,7.0299649]
[1767565901429,5.72067352,134.21,134.15,7.0299649]
[1767565901630,5.72067352,134.2,134.15,7.0299649]
[1767565901936,96.47699021,134.22,134.15,7.0299649]
[1767565902126,5.7206068,134.21,134.15,7.0299649]
[1767565902323,5.7206068,134.2,134.15,7.0299649]
[1767565902522,96.47699021,134.22,134.15,7.0299649]
[1767565902736,5.72022384,134.21,134.15,7.0299649]
[1767565902934,5.72022384,134.2,134.15,7.0299649]
[1767565903130,96.47699021,134.22,134.15,7.0299649]
[1767565903330,5.72000536,134.21,134.15,7.0299649]
[1767565903527,5.72000536,134.2,134.15,7.0299649]
[1767565903723,96.47699021,134.22,134.15,7.0299649]
[1767565903927,5.71985449,134.21,134.15,7.0299649]
[1767565904135,5.71985449,134.2,134.15,7.0299649]
[1767565904337,96.47699021,134.22,134.15,7.0299649]
[1767565904529,5.71950057,134.21,134.15,7.0299649]
[1767565904724,5.71950057,134.2,134.15,7.0299649]
[1767565904925,96.47699021,134.22,134.15,7.0299649]
[1767565905123,5.71950057,134.21,134.15,7.0299649]
[1767565905336,5.71950057,134.2,134.15,7.0299649]
[1767565905536,96.47699021,134.22,134.15,7.0299649]
[1767565905736,5.71939816,134.21,134.15,7.0299649]
[1767565905937,5.71939816,134.2,134.15,7.0299649]
[1767565906139,96.47699021,134.22,134.15,7.0299649]
[1767565906438,5.71939816,134.21,134.15,7.0299649]
[1767565906639,5.71939816,134.2,134.15,7.0299649]
[1767565906833,96.47699021,134.22,134.15,7.0299649]
[1767565907033,5.71907202,134.21,134.15,7.0299649]
[1767565907231,5.71907202,134.2,134.15,7.0299649]
[1767565907432,96.47699021,134.22,134.15,7.0299649]
[1767565907632,5.71929536,134.21,134.15,7.0299649]
[1767565907833,5.71929536,134.2,134.15,7.0299649]
[1767565908033,96.47699021,134.22,134.15,7.0299649]
[1767565908238,5.71929536,134.21,134.15,7.0299649]
[1767565908439,5.71929536,134.2,134.15,7.0299649]
[1767565908631,96.47699021,134.22,134.15,7.0299649]
[1767565908830,5.71947849,134.21,134.15,7.0299649]
[1767565909030,5.71947849,134.2,134.15,7.0299649]
[1767565909227,96.47699021,134.22,134.15,7.0299649]
[1767565909432,5.71972866,134.21,134.15,7.0299649]
[1767565909733,5.71972866,134.2,134.15,7.0299649]
[1767565909932,96.47699021,134.22,134.15,7.0299649]
[1767565910133,5.72099823,134.21,134.15,7.0299649]
[1767565910333,5.72099823,134.2,134.15,7.0299649]
[1767565910534,96.47699021,134.22,134.15,7.0299649]
[1767565910734,5.72131531,134.21,134.15,7.0299649]
[1767565910942,5.72131531,134.2,134.15,7.0299649]
[1767565911143,96.47699021,134.22,134.15,7.0299649]
[1767565911343,5.72131531,134.21,134.15,7.0299649]
[1767565911539,5.72131531,134.2,134.15,7.0299649]
[1767565911742,96.47699021,134.22,134.15,7.0299649]
[1767565911943,5.72170939,134.21,134.15,7.0299649]
[1767565912143,5.72170939,134.2,134.15,7.0299649]
[1767565912346,96.47699021,134.22,134.15,7.0299649]
[1767565912546,5.7221844,134.21,134.15,7.0299649]